fUST/lending_fUST_20240427
["ID","MTS","AMOUNT","RATE_DAILY","PERIOD"]
[323664826,1714151461860,-500.0,0.00042465,7]
[323664827,1714151461869,-5819.34,0.00042465,7]
[323664828,1714151461878,-500.0,0.00042465,7]
[323664829,1714151461887,-500.0,0.00042465,7]
[323664830,1714151461897,-1454.51,0.00042465,7]
[323664831,1714151461907,-500.0,0.00042465,7]
[323664832,1714151461921,-1730.0,0.00042709,35]
[323664833,1714151461940,-1730.0,0.00042719,35]
[323664834,1714151461956,-1730.0,0.00042729,35]
[323664835,1714151461976,-500.0,0.00042739,7]
[323664836,1714151461994,-500.0,0.00042739,7]
[323664837,1714151462010,-843.21,0.00042739,7]
[323664838,1714151462031,-500.0,0.00042739,3]
[323664839,1714151462047,-500.0,0.00042739,7]
[323664840,1714151462065,-500.0,0.00042739,7]
[323664841,1714151462081,-500.0,0.00042739,7]
[323664842,1714151462102,-500.0,0.00042739,7]
[323664843,1714151462121,-1531.05,0.00042739,120]
[323664844,1714151462135,-500.0,0.00042739,7]
[323664845,1714151462153,-500.93095687,0.00042739,7]
[323664846,1714151462169,-500.0,0.00042739,7]
[323664847,1714151462183,-1205.42,0.00042739,7]
[323664848,1714151462197,-500.0,0.00042739,7]
[323664849,1714151462210,-500.0,0.00042739,7]
[323664850,1714151462226,-500.0,0.00042739,7]
[323664851,1714151462242,-500.0,0.00042739,7]
[323664852,1714151462260,-500.0,0.00042739,7]
[323664853,1714151462279,-500.0,0.00042739,7]
[323664854,1714151462293,-424.31643842,0.00042739,7]
[323664855,1714151462308,-500.0,0.00042739,7]
[323664856,1714151462322,-501.34507667,0.00042739,7]
[323664857,1714151462338,-500.0,0.00042739,7]
[323664858,1714151462352,-500.0,0.00042739,7]
[323664859,1714151462367,-500.0,0.00042739,7]
[323664860,1714151462381,-500.0,0.00042739,7]
[323664861,1714151462396,-500.0,0.00042739,7]
[323664862,1714151462411,-1843.11,0.00042739,7]
[323664863,1714151462426,-1315.36,0.00042739,7]
[323664864,1714151462441,-500.0,0.00042739,7]
[323664865,1714151462455,-500.0,0.00042739,7]
[323664866,1714151462469,-1968.72,0.00042739,7]
[323664867,1714151462485,-500.0,0.00042739,7]
[323664868,1714151462500,-500.0,0.00042739,7]
[323664869,1714151462515,-1326.46,0.00042739,7]
[323664870,1714151462529,-466.48228527,0.00042739,7]
[323664871,1714151462544,-500.0,0.00042739,7]
[323664872,1714151462558,-500.0,0.00042739,7]
[323664873,1714151462572,-500.0,0.00042739,7]
[323664874,1714151462586,-500.0,0.00042739,7]
[323664875,1714151462600,-500.0,0.00042739,7]
[323664876,1714151462614,-500.0,0.00042739,7]
[323664877,1714151462628,-500.0,0.00042739,7]
[323664878,1714151462642,-500.0,0.00042739,7]
[323664879,1714151462657,-500.0,0.00042739,7]
[323664880,1714151462671,-1037.26,0.00042739,7]
[323664881,1714151462772,-1749.02,0.00042739,7]
[323664882,1714151462785,-1398.14,0.00042739,7]
[323664883,1714151462794,-500.0,0.00042739,7]
[323664884,1714151462804,-500.0,0.00042739,7]
[323664885,1714151462813,-500.0,0.00042739,7]
[323664886,1714151462822,-500.0,0.00042739,7]
[323664887,1714151462831,-547.54,0.00042739,7]
[323664888,1714151462841,-500.0,0.00042739,7]
[323664889,1714151462850,-2123.78,0.00042739,7]
[323664890,1714151462859,-500.0,0.00042739,7]
[323664891,1714151462870,-500.0,0.00042739,7]
[323664892,1714151462879,-151.0,0.00042739,7]
[323664893,1714151462888,-372.60642333,0.00042739,7]
[323664894,1714151462897,-500.0,0.00042739,7]
[323664895,1714151462907,-500.0,0.00042739,7]
[323664896,1714151462916,-2561.54,0.00042739,7]
[323664897,1714151462925,-500.0,0.00042739,7]
[323664898,1714151462934,-500.0,0.00042739,7]
[323664899,1714151462945,-500.0,0.00042739,7]
[323664900,1714151462955,-1529.74,0.00042739,7]
[323664901,1714151462966,-1087.6,0.00042739,7]
[323664902,1714151462975,-1398.22,0.00042739,7]
[323664903,1714151462985,-200.0,0.00042739,30]
[323664904,1714151462997,-500.0,0.00042739,7]
[323664905,1714151463006,-1748.44,0.00042739,7]
[323664906,1714151463015,-500.0,0.00042739,7]
[323664907,1714151463028,-500.0,0.00042739,7]
[323664908,1714151463036,-500.0,0.00042739,7]
[323664909,1714151463045,-500.0,0.00042739,7]
[323664910,1714151463055,-5209.22,0.00042739,7]
[323664911,1714151463066,-500.0,0.00042739,7]
[323664912,1714151463075,-500.0,0.00042739,7]
[323664913,1714151463084,-1379.93,0.00042739,7]
[323664914,1714151463095,-500.0,0.00042739,7]
[323664915,1714151463106,-502.83600425,0.00042739,7]
[323664916,1714151463114,-500.0,0.00042739,7]
[323664917,1714151463123,-835.38,0.00042739,7]
[323664918,1714151463133,-500.0,0.00042739,7]
[323664919,1714151463143,-728.58,0.00042739,7]
[323664920,1714151463152,-704.86,0.00042739,7]
[323664921,1714151463161,-1073.4,0.00042739,7]
[323664922,1714151463171,-500.0,0.00042739,7]
[323664923,1714151463180,-500.0,0.00042739,7]
[323664924,1714151463189,-1875.92,0.00042739,7]
[323664925,1714151463199,-500.0,0.00042739,7]
[323664926,1714151463210,-747.19,0.00042739,7]
[323664927,1714151463221,-500.0,0.00042739,7]
[323664928,1714151463232,-500.0,0.00042739,7]
[323664929,1714151463246,-500.0,0.00042739,7]
[323664930,1714151463255,-331.27082049,0.00042739,7]
[323664931,1714151463266,-314.74430686,0.00042739,7]
[323664932,1714151463275,-1963.81,0.00042739,7]
[323664933,1714151463285,-8810.57,0.00042739,7]
[323664934,1714151463294,-500.0,0.00042739,7]
[323664935,1714151463304,-1211.86,0.00042739,7]
[323664936,1714151463314,-500.0,0.00042739,7]
[323664937,1714151463323,-501.3979097,0.00042739,7]
[323664938,1714151463332,-500.0,0.00042739,7]
[323664939,1714151463341,-500.0,0.00042739,7]
[323664940,1714151463350,-6049.81,0.00042739,7]
[323664941,1714151463360,-1108.5,0.00042739,7]
[323664942,1714151463369,-500.0,0.00042739,7]
[323664943,1714151463379,-463.37864128,0.00042739,7]
[323664944,1714151463388,-500.0,0.00042739,7]
[323664945,1714151463397,-500.0,0.00042739,7]
[323664946,1714151463406,-660.06,0.00042739,7]
[323664947,1714151463415,-500.0,0.00042739,7]
[323664948,1714151463424,-4601.83,0.00042739,7]
[323664949,1714151463434,-500.0,0.00042739,7]
[323664950,1714151463442,-500.0,0.00042739,7]
[323664951,1714151463452,-500.0,0.00042739,7]
[323664952,1714151463461,-1006.47,0.00042739,7]
[323664953,1714151463470,-2642.19,0.00042739,7]
[323664954,1714151463479,-1236.95,0.00042739,7]
[323664955,1714151463490,-900.0,0.00042739,7]
[323664956,1714151463499,-500.0,0.00042739,7]
[323664957,1714151463508,-500.0,0.00042739,7]
[323664958,1714151463517,-500.0,0.00042739,7]
[323664959,1714151463526,-500.0,0.00042739,7]
[323664960,1714151463535,-1037.96,0.00042739,7]
[323664961,1714151463545,-1068.89,0.00042739,7]
[323664962,1714151463554,-500.0,0.00042739,7]
[323664963,1714151463564,-538.99,0.00042739,7]
[323664964,1714151463573,-701.69,0.00042739,7]
[323664965,1714151463583,-3882.5,0.00042739,7]
[323664966,1714151463592,-1351.34,0.00042739,7]
[323664967,1714151463601,-500.0,0.00042739,7]
[323664968,1714151463610,-502.28795571,0.00042739,7]
[323664969,1714151463619,-500.0,0.00042739,7]
[323664970,1714151463629,-500.0,0.00042739,7]
[323664971,1714151463639,-500.0,0.00042739,7]
[323664972,1714151463648,-1308.8,0.00042739,7]
[323664973,1714151463658,-4129.12,0.00042739,7]
[323664974,1714151463668,-509.54675734,0.00042739,7]
[323664975,1714151463676,-500.0,0.00042739,7]
[323664976,1714151463686,-500.0,0.00042739,7]
[323664977,1714151463695,-1568.78,0.00042739,7]
[323664978,1714151463706,-624.57,0.00042739,7]
[323664979,1714151463715,-500.0,0.00042739,7]
[323664980,1714151463725,-9906.46,0.00042739,7]
[323664981,1714151463734,-500.0,0.00042739,7]
[323664982,1714151463745,-707.43,0.00042739,7]
[323664983,1714151463755,-500.0,0.00042739,7]
[323664984,1714151463765,-500.0,0.00042739,7]
[323664985,1714151463774,-1463.03,0.00042739,7]
[323664986,1714151463784,-500.0,0.00042739,7]
[323664987,1714151463793,-8370.61,0.00042739,7]
[323664988,1714151463802,-652.39,0.00042739,7]
[323664989,1714151463811,-500.0,0.00042739,7]
[323664990,1714151463821,-1240.5,0.00042739,7]
[323664991,1714151463831,-522.04403814,0.00042739,7]
[323664992,1714151463840,-500.0,0.00042739,7]
[323664993,1714151463850,-500.0,0.00042739,7]
[323664994,1714151463859,-500.0,0.00042739,7]
[323664995,1714151463870,-500.0,0.00042739,7]
[323664996,1714151463880,-612.68,0.00042739,7]
[323664997,1714151463889,-735.34,0.00042739,7]
[323664998,1714151463898,-577.88,0.00042739,7]
[323664999,1714151463909,-12883.84,0.00042739,7]
[323665000,1714151463919,-10267.73,0.00042739,7]
[323665001,1714151463928,-1671.4,0.00042739,7]
[323665002,1714151463938,-500.0,0.00042739,7]
[323665003,1714151463948,-500.0,0.00042739,7]
[323665004,1714151463957,-500.0,0.00042739,7]
[323665005,1714151464033,-500.0,0.00042739,7]
[323665006,1714151464043,-500.0,0.00042739,2]
[323665007,1714151464054,-356.78711012,0.00042739,7]
[323665008,1714151464064,-500.0,0.00042739,7]
[323665009,1714151464074,-5819.34,0.00042739,7]
[323665010,1714151464084,-500.0,0.00042739,7]
[323665011,1714151464094,-500.0,0.00042739,7]
[323665012,1714151464105,-1454.51,0.00042739,7]
[323665013,1714151464115,-507.69119918,0.00042739,7]
[323665014,1714151464124,-500.0,0.00043013,7]
[323665015,1714151464133,-500.0,0.00043013,7]
[323665016,1714151464142,-843.21,0.00043013,7]
[323665017,1714151464151,-500.0,0.00043013,3]
[323665018,1714151464161,-500.0,0.00043013,7]
[323665019,1714151464171,-500.0,0.00043013,7]
[323665020,1714151464180,-500.0,0.00043013,7]
[323665021,1714151464190,-500.0,0.00043013,7]
[323665022,1714151464200,-1531.05,0.00043013,120]
[323665023,1714151464210,-500.0,0.00043013,7]
[323665024,1714151464219,-500.0,0.00043013,7]
[323665025,1714151464228,-1205.42,0.00043013,7]
[323665026,1714151464239,-500.0,0.00043013,7]
[323665027,1714151464249,-500.0,0.00043013,7]
[323665028,1714151464258,-500.0,0.00043013,7]
[323665029,1714151464268,-500.0,0.00043013,7]
[323665030,1714151464277,-500.0,0.00043013,7]
[323665031,1714151464286,-500.0,0.00043013,7]
[323665032,1714151464295,-500.0,0.00043013,7]
[323665033,1714151464304,-500.0,0.00043013,7]
[323665034,1714151464313,-500.0,0.00043013,7]
[323665035,1714151464322,-500.0,0.00043013,7]
[323665036,1714151464331,-500.0,0.00043013,7]
[323665037,1714151464340,-1843.11,0.00043013,7]
[323665038,1714151464349,-1315.36,0.00043013,7]
[323665039,1714151464358,-500.0,0.00043013,7]
[323665040,1714151464367,-500.0,0.00043013,7]
[323665041,1714151464376,-1968.72,0.00043013,7]
[323665042,1714151464385,-500.0,0.00043013,7]
[323665043,1714151464394,-500.0,0.00043013,7]
[323665044,1714151464403,-1326.46,0.00043013,7]
[323665045,1714151464412,-500.0,0.00043013,7]
[323665046,1714151464421,-500.0,0.00043013,7]
[323665047,1714151464431,-500.0,0.00043013,7]
[323665048,1714151464440,-500.0,0.00043013,7]
[323665049,1714151464449,-500.0,0.00043013,7]
[323665050,1714151464458,-500.0,0.00043013,7]
[323665051,1714151464468,-500.0,0.00043013,7]
[323665052,1714151464478,-500.0,0.00043013,7]
[323665053,1714151464488,-500.0,0.00043013,7]
[323665054,1714151464497,-1037.26,0.00043013,7]
[323665055,1714151464506,-1749.02,0.00043013,7]
[323665056,1714151464515,-1398.14,0.00043013,7]
[323665057,1714151464524,-500.0,0.00043013,7]
[323665058,1714151464534,-494.41505968,0.00043013,7]
[323665059,1714151464543,-500.0,0.00043013,7]
[323665060,1714151464552,-500.0,0.00043013,7]
[323665061,1714151464562,-547.54,0.00043013,7]
[323665062,1714151464571,-500.0,0.00043013,7]
[323665063,1714151464580,-2123.78,0.00043013,7]
[323665064,1714151464589,-500.0,0.00043013,7]
[323665065,1714151464598,-500.0,0.00043013,7]
[323665066,1714151464608,-151.0,0.00043013,7]
[323665067,1714151464617,-500.0,0.00043013,7]
[323665068,1714151464626,-501.43658581,0.00043013,7]
[323665069,1714151464636,-2561.54,0.00043013,7]
[323665070,1714151464645,-500.0,0.00043013,7]
[323665071,1714151464655,-500.0,0.00043013,7]
[323665072,1714151464664,-500.0,0.00043013,7]
[323665073,1714151464673,-1529.74,0.00043013,7]
[323665074,1714151464682,-1087.6,0.00043013,7]
[323665075,1714151464692,-1398.22,0.00043013,7]
[323665076,1714151464701,-200.0,0.00043013,30]
[323665077,1714151464710,-500.0,0.00043013,7]
[323665078,1714151464719,-1748.44,0.00043013,7]
[323665079,1714151464729,-500.0,0.00043013,7]
[323665080,1714151464739,-500.0,0.00043013,7]
[323665081,1714151464749,-500.0,0.00043013,7]
[323665082,1714151464758,-500.0,0.00043013,7]
[323665083,1714151464767,-5209.22,0.00043013,7]
[323665084,1714151464777,-500.0,0.00043013,7]
[323665085,1714151464786,-500.0,0.00043013,7]
[323665086,1714151464795,-1379.93,0.00043013,7]
[323665087,1714151464805,-500.0,0.00043013,7]
[323665088,1714151464814,-500.0,0.00043013,7]
[323665089,1714151464823,-835.38,0.00043013,7]
[323665090,1714151464833,-500.0,0.00043013,7]
[323665091,1714151464843,-728.58,0.00043013,7]
[323665092,1714151464852,-704.86,0.00043013,7]
[323665093,1714151464862,-1073.4,0.00043013,7]
[323665094,1714151464871,-500.0,0.00043013,7]
[323665095,1714151464880,-500.0,0.00043013,7]
[323665096,1714151464890,-1875.92,0.00043013,7]
[323665097,1714151464900,-503.81699143,0.00043013,7]
[323665098,1714151464909,-747.19,0.00043013,7]
[323665099,1714151464919,-500.0,0.00043013,7]
[323665100,1714151464928,-500.0,0.00043013,7]
[323665101,1714151464939,-500.0,0.00043013,7]
[323665102,1714151464948,-1963.81,0.00043013,7]
[323665103,1714151464958,-8810.57,0.00043013,7]
[323665104,1714151464967,-388.52983709,0.00043013,7]
[323665105,1714151464977,-1211.86,0.00043013,7]
[323665106,1714151464986,-501.56673767,0.00043013,7]
[323665107,1714151464996,-500.0,0.00043013,7]
[323665108,1714151465006,-500.0,0.00043013,7]
[323665109,1714151465017,-6049.81,0.00043013,7]
[323665110,1714151465029,-1108.5,0.00043013,7]
[323665111,1714151465038,-500.0,0.00043013,7]
[323665112,1714151465049,-500.0,0.00043013,7]
[323665113,1714151465059,-500.0,0.00043013,7]
[323665114,1714151465068,-660.06,0.00043013,7]
[323665115,1714151465078,-500.0,0.00043013,7]
[323665116,1714151465087,-4601.83,0.00043013,7]
[323665117,1714151465097,-500.0,0.00043013,7]
[323665118,1714151465106,-478.79,0.00043013,7]
[323665119,1714151465115,-500.0,0.00043013,7]
[323665120,1714151465188,-2642.19,0.00043013,7]
[323665121,1714151465198,-1006.47,0.00043013,7]
[323665122,1714151465208,-1236.95,0.00043013,7]
[323665123,1714151465218,-900.0,0.00043013,7]
[323665124,1714151465228,-500.0,0.00043013,7]
[323665125,1714151465238,-500.0,0.00043013,7]
[323665126,1714151465248,-500.0,0.00043013,7]
[323665127,1714151465258,-500.0,0.00043013,7]
[323665128,1714151465267,-1037.96,0.00043013,7]
[323665129,1714151465277,-1068.89,0.00043013,7]
[323665130,1714151465286,-500.0,0.00043013,7]
[323665131,1714151465296,-538.99,0.00043013,7]
[323665132,1714151465305,-701.69,0.00043013,7]
[323665133,1714151465315,-3882.5,0.00043013,7]
[323665134,1714151465324,-1351.34,0.00043013,7]
[323665135,1714151465334,-500.0,0.00043013,7]
[323665136,1714151465343,-500.0,0.00043013,7]
[323665137,1714151465353,-500.0,0.00043013,7]
[323665138,1714151465362,-500.0,0.00043013,7]
[323665139,1714151465372,-1308.8,0.00043013,7]
[323665140,1714151465381,-4129.12,0.00043013,7]
[323665141,1714151465391,-500.0,0.00043013,7]
[323665142,1714151465400,-500.0,0.00043013,7]
[323665143,1714151465409,-1568.78,0.00043013,7]
[323665144,1714151465419,-624.57,0.00043013,7]
[323665145,1714151465429,-500.0,0.00043013,7]
[323665146,1714151465438,-9906.46,0.00043013,7]
[323665147,1714151465447,-500.0,0.00043013,7]
[323665148,1714151465457,-707.43,0.00043013,7]
[323665149,1714151465466,-500.0,0.00043013,7]
[323665150,1714151465475,-500.0,0.00043013,7]
[323665151,1714151465484,-1463.03,0.00043013,7]
[323665152,1714151465495,-500.0,0.00043013,7]
[323665153,1714151465506,-8370.61,0.00043013,7]
[323665154,1714151465516,-652.39,0.00043013,7]
[323665155,1714151465525,-250.59540047,0.00043013,7]
[323665156,1714151465535,-1240.5,0.00043013,7]
[323665157,1714151465544,-500.0,0.00043013,7]
[323665158,1714151465554,-500.0,0.00043013,7]
[323665159,1714151465563,-500.0,0.00043013,7]
[323665160,1714151465573,-612.68,0.00043013,7]
[323665161,1714151465583,-500.0,0.00043013,7]
[323665162,1714151465592,-735.34,0.00043013,7]
[323665163,1714151465602,-577.88,0.00043013,7]
[323665164,1714151465611,-12883.84,0.00043013,7]
[323665165,1714151465621,-10267.73,0.00043013,7]
[323665166,1714151465631,-1671.4,0.00043013,7]
[323665167,1714151465641,-500.0,0.00043013,7]
[323665168,1714151465651,-500.0,0.00043013,7]
[323665169,1714151465661,-500.0,0.00043013,7]
[323665170,1714151465671,-501.58291824,0.00043013,7]
[323665171,1714151465681,-500.0,0.00043013,2]
[323665172,1714151465691,-500.0,0.00043013,7]
[323665173,1714151465701,-500.0,0.00043013,7]
[323665174,1714151465710,-500.0,0.00043013,7]
[323665175,1714151465720,-1454.51,0.00043013,7]
[323665176,1714151465730,-1688.0,0.000432,120]
[323665177,1714151465739,-500.0,0.00043287,7]
[323665178,1714151465749,-500.0,0.00043287,7]
[323665179,1714151465760,-843.21,0.00043287,7]
[323665180,1714151465770,-500.0,0.00043287,3]
[323665181,1714151465779,-161.48812415,0.00043287,7]
[323665182,1714151465789,-500.0,0.00043287,7]
[323665183,1714151465798,-500.0,0.00043287,7]
[323665184,1714151465808,-501.2848267,0.00043287,7]
[323665185,1714151465818,-1531.05,0.00043287,120]
[323665186,1714151465828,-501.18423634,0.00043287,7]
[323665187,1714151465837,-500.0,0.00043287,7]
[323665188,1714151465847,-1205.42,0.00043287,7]
[323665189,1714151465857,-500.0,0.00043287,7]
[323665190,1714151465867,-500.0,0.00043287,7]
[323665191,1714151465878,-500.0,0.00043287,7]
[323665192,1714151465888,-401.28501237,0.00043287,7]
[323665193,1714151465898,-500.0,0.00043287,7]
[323665194,1714151465907,-500.0,0.00043287,7]
[323665195,1714151465917,-500.0,0.00043287,7]
[323665196,1714151465927,-500.0,0.00043287,7]
[323665197,1714151465938,-500.0,0.00043287,7]
[323665198,1714151465947,-500.0,0.00043287,7]
[323665199,1714151465958,-500.0,0.00043287,7]
[323665200,1714151465968,-1843.11,0.00043287,7]
[323665201,1714151465978,-1315.36,0.00043287,7]
[323665202,1714151465988,-500.0,0.00043287,7]
[323665203,1714151465998,-500.0,0.00043287,7]
[323665204,1714151466009,-1968.72,0.00043287,7]
[323665205,1714151466021,-500.0,0.00043287,7]
[323665206,1714151466031,-500.0,0.00043287,7]
[323665207,1714151466040,-1326.46,0.00043287,7]
[323665208,1714151466050,-500.0,0.00043287,7]
[323665209,1714151466061,-500.0,0.00043287,7]
[323665210,1714151466071,-500.0,0.00043287,7]
[323665211,1714151466081,-500.0,0.00043287,7]
[323665212,1714151466091,-354.57498364,0.00043287,7]
[323665213,1714151466102,-500.0,0.00043287,7]
[323665214,1714151466113,-500.0,0.00043287,7]
[323665215,1714151466123,-500.0,0.00043287,7]
[323665216,1714151466133,-500.0,0.00043287,7]
[323665217,1714151466143,-1037.26,0.00043287,7]
[323665218,1714151466152,-1749.02,0.00043287,7]
[323665219,1714151466162,-1398.14,0.00043287,7]
[323665220,1714151466171,-500.0,0.00043287,7]
[323665221,1714151466181,-500.0,0.00043287,7]
[323665222,1714151466191,-500.0,0.00043287,7]
[323665223,1714151466201,-547.54,0.00043287,7]
[323665224,1714151466212,-500.0,0.00043287,7]
[323665225,1714151466293,-2123.78,0.00043287,7]
[323665226,1714151466303,-500.0,0.00043287,7]
[323665227,1714151466313,-500.0,0.00043287,7]
[323665228,1714151466322,-500.0,0.00043287,7]
[323665229,1714151466332,-2561.54,0.00043287,7]
[323665230,1714151466341,-500.0,0.00043287,7]
[323665231,1714151466351,-500.0,0.00043287,7]
[323665232,1714151466361,-500.0,0.00043287,7]
[323665233,1714151466370,-1529.74,0.00043287,7]
[323665234,1714151466380,-1087.6,0.00043287,7]
[323665235,1714151466390,-1398.22,0.00043287,7]
[323665236,1714151466400,-200.0,0.00043287,30]
[323665237,1714151466410,-500.0,0.00043287,7]
[323665238,1714151466420,-1748.44,0.00043287,7]
[323665239,1714151466430,-500.0,0.00043287,7]
[323665240,1714151466440,-500.0,0.00043287,7]
[323665241,1714151466450,-500.0,0.00043287,7]
[323665242,1714151466460,-240.86571393,0.00043287,7]
[323665243,1714151466470,-5209.22,0.00043287,7]
[323665244,1714151466480,-500.0,0.00043287,7]
[323665245,1714151466491,-500.0,0.00043287,7]
[323665246,1714151466500,-1379.93,0.00043287,7]
[323665247,1714151466509,-500.0,0.00043287,7]
[323665248,1714151466518,-500.0,0.00043287,7]
[323665249,1714151466527,-835.38,0.00043287,7]
[323665250,1714151466536,-500.0,0.00043287,7]
[323665251,1714151466546,-728.58,0.00043287,7]
[323665252,1714151466556,-999.0,0.00043287,14]
[323665253,1714151466566,-704.86,0.00043287,7]
[323665254,1714151466575,-1073.4,0.00043287,7]
[323665255,1714151466585,-500.0,0.00043287,7]
[323665256,1714151466595,-500.0,0.00043287,7]
[323665257,1714151466605,-1875.92,0.00043287,7]
[323665258,1714151466615,-747.19,0.00043287,7]
[323665259,1714151466625,-500.0,0.00043287,7]
[323665260,1714151466635,-500.0,0.00043287,7]
[323665261,1714151466645,-500.0,0.00043287,7]
[323665262,1714151466655,-1963.81,0.00043287,7]
[323665263,1714151466664,-8810.57,0.00043287,7]
[323665264,1714151466675,-1211.86,0.00043287,7]
[323665265,1714151466685,-500.0,0.00043287,7]
[323665266,1714151466695,-500.0,0.00043287,7]
[323665267,1714151466704,-6049.81,0.00043287,7]
[323665268,1714151466714,-1108.5,0.00043287,7]
[323665269,1714151466724,-500.0,0.00043287,7]
[323665270,1714151466733,-500.0,0.00043287,7]
[323665271,1714151466743,-500.0,0.00043287,7]
[323665272,1714151466753,-660.06,0.00043287,7]
[323665273,1714151466762,-500.0,0.00043287,7]
[323665274,1714151466780,-4601.83,0.00043287,7]
[323665275,1714151466797,-500.0,0.00043287,7]
[323665276,1714151466817,-500.0,0.00043287,7]
[323665277,1714151466837,-1006.47,0.00043287,7]
[323665278,1714151466852,-2642.19,0.00043287,7]
[323665279,1714151466869,-1236.95,0.00043287,7]
[323665280,1714151466887,-900.0,0.00043287,7]
[323665281,1714151466906,-500.0,0.00043287,7]
[323665282,1714151466923,-500.0,0.00043287,7]
[323665283,1714151466939,-500.0,0.00043287,7]
[323665284,1714151466959,-500.0,0.00043287,7]
[323665285,1714151466976,-1037.96,0.00043287,7]
[323665286,1714151466990,-1068.89,0.00043287,7]
[323665287,1714151467007,-500.0,0.00043287,7]
[323665288,1714151467025,-538.99,0.00043287,7]
[323665289,1714151467041,-701.69,0.00043287,7]
[323665290,1714151467056,-3882.5,0.00043287,7]
[323665291,1714151467071,-1351.34,0.00043287,7]
[323665292,1714151467086,-500.0,0.00043287,7]
[323665293,1714151467101,-500.0,0.00043287,7]
[323665294,1714151467116,-500.0,0.00043287,7]
[323665295,1714151467132,-500.0,0.00043287,7]
[323665296,1714151467147,-1308.8,0.00043287,7]
[323665297,1714151467161,-4129.12,0.00043287,7]
[323665298,1714151467176,-500.0,0.00043287,7]
[323665299,1714151467191,-500.0,0.00043287,7]
[323665300,1714151467206,-1568.78,0.00043287,7]
[323665301,1714151467221,-624.57,0.00043287,7]
[323665302,1714151467236,-502.55176041,0.00043287,7]
[323665303,1714151467251,-9906.46,0.00043287,7]
[323665304,1714151467265,-500.0,0.00043287,7]
[323665305,1714151467280,-707.43,0.00043287,7]
[323665306,1714151467296,-500.0,0.00043287,7]
[323665307,1714151467311,-500.0,0.00043287,7]
[323665308,1714151467326,-1463.03,0.00043287,7]
[323665309,1714151467340,-500.0,0.00043287,7]
[323665310,1714151467354,-8370.61,0.00043287,7]
[323665311,1714151467371,-652.39,0.00043287,7]
[323665312,1714151467386,-1240.5,0.00043287,7]
[323665313,1714151467401,-500.0,0.00043287,7]
[323665314,1714151467416,-500.0,0.00043287,7]
[323665315,1714151467430,-500.0,0.00043287,7]
[323665316,1714151467446,-500.0,0.00043287,7]
[323665317,1714151467461,-612.68,0.00043287,7]
[323665318,1714151467475,-735.34,0.00043287,7]
[323665319,1714151467491,-577.88,0.00043287,7]
[323665320,1714151467506,-12883.84,0.00043287,7]
[323665321,1714151467522,-10267.73,0.00043287,7]
[323665322,1714151467626,-1671.4,0.00043287,7]
[323665323,1714151467636,-500.0,0.00043287,7]
[323665324,1714151467645,-500.0,0.00043287,7]
[323665325,1714151467655,-500.0,0.00043287,7]